[Event "Titled Tuesday Blitz March 28 Late 2023"]
[White "Kamsky, Gata"]
[Black "Sargsyan, Shant"]
[WhiteFideId "2000024"]
[BlackFideId "13306766"]
[WhiteElo "2666"]
[BlackElo "2628"]
[Result "0-1"]
[Round "10"]
[TimeControl "180+2"]
[Date "2023.03.28"]
[WhiteClock "0:00:05"]
[BlackClock "0:00:05"]

1. e4 {[%clk 0:03:00]}  g6 {[%clk 0:02:56]} 2. d4 {[%clk 0:02:57]}  Bg7 {[%clk 0:02:57]} 3. c3 {[%clk 0:02:57]}  d6 {[%clk 0:02:54]} 4. Nf3 {[%clk 0:02:53]}  Nf6 {[%clk 0:02:54]} 5. Bd3 {[%clk 0:02:51]}  O-O {[%clk 0:02:55]} 6. O-O {[%clk 0:02:50]}  Nbd7 {[%clk 0:02:55]} 7. Bg5 {[%clk 0:02:45]}  h6 {[%clk 0:02:55]} 8. Bh4 {[%clk 0:02:45]}  e5 {[%clk 0:02:53]} 9. Nbd2 {[%clk 0:02:41]}  Qe8 {[%clk 0:02:50]} 10. Re1 {[%clk 0:02:40]}  Nh5 {[%clk 0:02:50]} 11. Nc4 {[%clk 0:02:33]}  Nb6 {[%clk 0:02:41]} 12. Ne3 {[%clk 0:02:32]}  Nf4 {[%clk 0:02:32]} 13. Bf1 {[%clk 0:02:29]}  a5 {[%clk 0:02:28]} 14. Qc2 {[%clk 0:02:19]}  a4 {[%clk 0:02:28]} 15. dxe5 {[%clk 0:02:08]}  dxe5 {[%clk 0:02:27]} 16. Nd2 {[%clk 0:02:07]}  Be6 {[%clk 0:02:26]} 17. Ndc4 {[%clk 0:02:04]}  Nxc4 {[%clk 0:02:25]} 18. Bxc4 {[%clk 0:02:03]}  Bxc4 {[%clk 0:02:23]} 19. Nxc4 {[%clk 0:02:04]}  Qc6 {[%clk 0:02:24]} 20. Ne3 {[%clk 0:02:03]}  b5 {[%clk 0:02:11]} 21. Rad1 {[%clk 0:02:00]}  Qe6 {[%clk 0:02:04]} 22. b3 {[%clk 0:01:58]}  axb3 {[%clk 0:02:03]} 23. axb3 {[%clk 0:01:58]}  c6 {[%clk 0:01:59]} 24. Bg3 {[%clk 0:01:56]}  Rfd8 {[%clk 0:01:58]} 25. Rxd8+ {[%clk 0:01:42]}  Rxd8 {[%clk 0:01:59]} 26. Rd1 {[%clk 0:01:42]}  Ra8 {[%clk 0:01:59]} 27. h3 {[%clk 0:01:40]}  h5 {[%clk 0:01:59]} 28. c4 {[%clk 0:01:39]}  b4 {[%clk 0:01:50]} 29. Qd2 {[%clk 0:01:28]}  Bf8 {[%clk 0:01:47]} 30. Nc2 {[%clk 0:01:24]}  Ra2 {[%clk 0:01:46]} 31. Ra1 {[%clk 0:01:05]}  Rxa1+ {[%clk 0:01:35]} 32. Nxa1 {[%clk 0:01:05]}  Qf6 {[%clk 0:01:30]} 33. Nc2 {[%clk 0:01:02]}  h4 {[%clk 0:01:31]} 34. Bxf4 {[%clk 0:01:00]}  exf4 {[%clk 0:01:30]} 35. Nxb4 {[%clk 0:00:54]}  Qa1+ {[%clk 0:01:28]} 36. Kh2 {[%clk 0:00:54]}  Qa5 {[%clk 0:01:28]} 37. Qxf4 {[%clk 0:00:44]}  Qxb4 {[%clk 0:01:26]} 38. Qxh4 {[%clk 0:00:41]}  Qxb3 {[%clk 0:01:25]} 39. e5 {[%clk 0:00:42]}  Qd3 {[%clk 0:01:18]} 40. Qg4 {[%clk 0:00:37]}  Kg7 {[%clk 0:00:57]} 41. g3 {[%clk 0:00:31]}  Bc5 {[%clk 0:00:38]} 42. Kg2 {[%clk 0:00:28]}  Qd4 {[%clk 0:00:30]} 43. Qxd4 {[%clk 0:00:27]}  Bxd4 {[%clk 0:00:31]} 44. f4 {[%clk 0:00:27]}  g5 {[%clk 0:00:22]} 45. Kf3 {[%clk 0:00:25]}  gxf4 {[%clk 0:00:22]} 46. Kxf4 {[%clk 0:00:26]}  Kg6 {[%clk 0:00:21]} 47. Ke4 {[%clk 0:00:22]}  Bf2 {[%clk 0:00:21]} 48. Kf3 {[%clk 0:00:22]}  Be1 {[%clk 0:00:21]} 49. Kf4 {[%clk 0:00:22]}  Bd2+ {[%clk 0:00:21]} 50. Kg4 {[%clk 0:00:20]}  Bc1 {[%clk 0:00:20]} 51. h4 {[%clk 0:00:19]}  Bb2 {[%clk 0:00:17]} 52. Kf4 {[%clk 0:00:18]}  Bc1+ {[%clk 0:00:17]} 53. Kg4 {[%clk 0:00:18]}  Bd2 {[%clk 0:00:17]} 54. h5+ {[%clk 0:00:15]}  Kh6 {[%clk 0:00:18]} 55. Kf5 {[%clk 0:00:16]}  Kxh5 {[%clk 0:00:17]} 56. Kf6 {[%clk 0:00:14]}  Bc3 {[%clk 0:00:13]} 57. c5 {[%clk 0:00:15]}  Bd4 {[%clk 0:00:05]} 58. Kxf7 {[%clk 0:00:14]}  Bxc5 {[%clk 0:00:06]} 59. Ke6 {[%clk 0:00:14]}  Bf8 {[%clk 0:00:04]} 60. Kf5 {[%clk 0:00:14]}  Kh6 {[%clk 0:00:04]} 61. Kf6 {[%clk 0:00:07]}  Kh5 {[%clk 0:00:04]} 62. Kf5 {[%clk 0:00:06]}  c5 {[%clk 0:00:05]} 63. g4+ {[%clk 0:00:05]}  Kh4 {[%clk 0:00:05]} 0-1


[Site "https://www.chess.com"]

[Event "Titled Tuesday Blitz March 28 Late 2023"]
[White "Firouzja, Alireza"]
[Black "Kramnik, Vladimir"]
[WhiteFideId "12573981"]
[BlackFideId "4101588"]
[WhiteElo "2904"]
[BlackElo "2712"]
[Result "1-0"]
[Round "10"]
[TimeControl "180+2"]
[Date "2023.03.28"]
[WhiteClock "0:00:04"]
[BlackClock "0:00:02"]

1. d4 {[%clk 0:02:57]}  Nf6 {[%clk 0:02:59]} 2. Nc3 {[%clk 0:02:57]}  d5 {[%clk 0:02:59]} 3. Bf4 {[%clk 0:02:58]}  c5 {[%clk 0:02:59]} 4. e3 {[%clk 0:02:56]}  cxd4 {[%clk 0:02:53]} 5. exd4 {[%clk 0:02:55]}  a6 {[%clk 0:02:44]} 6. Nf3 {[%clk 0:02:54]}  Nc6 {[%clk 0:02:42]} 7. Ne5 {[%clk 0:02:54]}  Bd7 {[%clk 0:02:42]} 8. g3 {[%clk 0:02:47]}  e6 {[%clk 0:02:41]} 9. Bg2 {[%clk 0:02:48]}  Qb6 {[%clk 0:02:36]} 10. Ne2 {[%clk 0:02:02]}  Be7 {[%clk 0:02:22]} 11. O-O {[%clk 0:01:58]}  O-O {[%clk 0:02:21]} 12. c4 {[%clk 0:01:45]}  dxc4 {[%clk 0:02:14]} 13. Nxc4 {[%clk 0:01:45]}  Qa7 {[%clk 0:02:05]} 14. Qb3 {[%clk 0:01:31]}  Nd5 {[%clk 0:01:48]} 15. Bxd5 {[%clk 0:01:29]}  exd5 {[%clk 0:01:47]} 16. Nb6 {[%clk 0:01:29]}  Bg4 {[%clk 0:01:31]} 17. f3 {[%clk 0:01:08]}  Na5 {[%clk 0:01:31]} 18. Qxd5 {[%clk 0:01:06]}  Qxb6 {[%clk 0:01:30]} 19. fxg4 {[%clk 0:01:06]}  Rad8 {[%clk 0:01:20]} 20. Qf3 {[%clk 0:00:32]}  Nc6 {[%clk 0:01:20]} 21. Be3 {[%clk 0:00:30]}  Qb5 {[%clk 0:01:08]} 22. Nc3 {[%clk 0:00:24]}  Qxb2 {[%clk 0:01:06]} 23. Nd5 {[%clk 0:00:24]}  Qb5 {[%clk 0:00:53]} 24. Nxe7+ {[%clk 0:00:23]}  Nxe7 {[%clk 0:00:53]} 25. Rab1 {[%clk 0:00:24]}  Qd3 {[%clk 0:00:37]} 26. Rxb7 {[%clk 0:00:19]}  Nd5 {[%clk 0:00:36]} 27. Rb3 {[%clk 0:00:19]}  Qg6 {[%clk 0:00:31]} 28. Bf2 {[%clk 0:00:19]}  Rfe8 {[%clk 0:00:29]} 29. Qf5 {[%clk 0:00:17]}  Qc6 {[%clk 0:00:23]} 30. g5 {[%clk 0:00:16]}  Rd7 {[%clk 0:00:21]} 31. Qf3 {[%clk 0:00:15]}  Qa4 {[%clk 0:00:19]} 32. Re1 {[%clk 0:00:11]}  Rc8 {[%clk 0:00:15]} 33. Qf5 {[%clk 0:00:11]}  g6 {[%clk 0:00:13]} 34. Qg4 {[%clk 0:00:09]}  Qc6 {[%clk 0:00:10]} 35. Rf3 {[%clk 0:00:09]}  Rcd8 {[%clk 0:00:10]} 36. h4 {[%clk 0:00:09]}  Ne7 {[%clk 0:00:08]} 37. Rfe3 {[%clk 0:00:08]}  Nf5 {[%clk 0:00:06]} 38. Re8+ {[%clk 0:00:08]}  Rxe8 {[%clk 0:00:05]} 39. Rxe8+ {[%clk 0:00:09]}  Kg7 {[%clk 0:00:04]} 40. h5 {[%clk 0:00:07]}  Qc1+ {[%clk 0:00:03]} 41. Kg2 {[%clk 0:00:06]}  h6 {[%clk 0:00:03]} 42. hxg6 {[%clk 0:00:05]}  fxg6 {[%clk 0:00:01]} 43. gxh6+ {[%clk 0:00:05]}  Qxh6 {[%clk 0:00:02]} 44. Qe4 {[%clk 0:00:04]}  Qg5 {[%clk 0:00:01]} 45. Qe5+ {[%clk 0:00:03]}  Qf6 {[%clk 0:00:01]} 46. Rg8+ {[%clk 0:00:03]}  Kf7 {[%clk 0:00:01]} 47. Rf8+ {[%clk 0:00:02]}  Kxf8 {[%clk 0:00:01]} 48. Qxf6+ {[%clk 0:00:03]}  Ke8 {[%clk 0:00:02]} 49. Qxg6+ {[%clk 0:00:04]}  Rf7 {[%clk 0:00:02]} 50. d5 {[%clk 0:00:04]} 1-0


[Site "https://www.chess.com"]

[Event "Titled Tuesday Blitz March 28 Late 2023"]
[White "Erigaisi Arjun"]
[Black "Rustemov, Alexander"]
[WhiteFideId "35009192"]
[BlackFideId "4119002"]
[WhiteElo "2737"]
[BlackElo "2884"]
[Result "1-0"]
[Round "10"]
[TimeControl "180+2"]
[Date "2023.03.28"]
[WhiteClock "0:00:29"]
[BlackClock "0:00:13"]

1. b3 {[%clk 0:03:00]}  d5 {[%clk 0:02:59]} 2. Bb2 {[%clk 0:03:00]}  Nf6 {[%clk 0:02:59]} 3. Nf3 {[%clk 0:03:00]}  Bf5 {[%clk 0:03:00]} 4. Nh4 {[%clk 0:02:58]}  Bd7 {[%clk 0:02:59]} 5. c4 {[%clk 0:02:57]}  e6 {[%clk 0:02:50]} 6. Nf3 {[%clk 0:02:53]}  c5 {[%clk 0:02:47]} 7. e3 {[%clk 0:02:52]}  Nc6 {[%clk 0:02:43]} 8. Nc3 {[%clk 0:02:45]}  d4 {[%clk 0:02:34]} 9. Ne2 {[%clk 0:02:40]}  e5 {[%clk 0:02:34]} 10. exd4 {[%clk 0:02:40]}  exd4 {[%clk 0:02:32]} 11. Ng3 {[%clk 0:02:38]}  Bd6 {[%clk 0:02:27]} 12. Bd3 {[%clk 0:02:38]}  O-O {[%clk 0:02:27]} 13. O-O {[%clk 0:02:38]}  Re8 {[%clk 0:02:21]} 14. Re1 {[%clk 0:02:38]}  g6 {[%clk 0:02:12]} 15. Ne4 {[%clk 0:02:33]}  Nxe4 {[%clk 0:02:02]} 16. Bxe4 {[%clk 0:02:34]}  Qc7 {[%clk 0:01:56]} 17. h3 {[%clk 0:02:23]}  Re7 {[%clk 0:01:51]} 18. d3 {[%clk 0:02:22]}  Rae8 {[%clk 0:01:51]} 19. Bc1 {[%clk 0:02:13]}  Bf4 {[%clk 0:01:49]} 20. Bxf4 {[%clk 0:02:07]}  Qxf4 {[%clk 0:01:49]} 21. Qc1 {[%clk 0:02:08]}  Qxc1 {[%clk 0:01:46]} 22. Raxc1 {[%clk 0:02:07]}  b6 {[%clk 0:01:20]} 23. a3 {[%clk 0:02:00]}  Ne5 {[%clk 0:01:13]} 24. Nxe5 {[%clk 0:01:58]}  Rxe5 {[%clk 0:01:13]} 25. f4 {[%clk 0:01:59]}  R5e7 {[%clk 0:01:12]} 26. Kf2 {[%clk 0:01:59]}  f5 {[%clk 0:00:54]} 27. Bd5+ {[%clk 0:01:58]}  Kg7 {[%clk 0:00:54]} 28. Rxe7+ {[%clk 0:01:59]}  Rxe7 {[%clk 0:00:55]} 29. b4 {[%clk 0:01:49]}  Re3 {[%clk 0:00:42]} 30. bxc5 {[%clk 0:01:47]}  bxc5 {[%clk 0:00:42]} 31. Rb1 {[%clk 0:01:48]}  Kf6 {[%clk 0:00:33]} 32. Rb7 {[%clk 0:01:31]}  Be8 {[%clk 0:00:33]} 33. Rxh7 {[%clk 0:01:21]}  Rxd3 {[%clk 0:00:33]} 34. Rxa7 {[%clk 0:01:21]}  Rd2+ {[%clk 0:00:33]} 35. Ke1 {[%clk 0:01:19]}  Rc2 {[%clk 0:00:29]} 36. g4 {[%clk 0:01:13]}  fxg4 {[%clk 0:00:28]} 37. hxg4 {[%clk 0:01:14]}  d3 {[%clk 0:00:28]} 38. a4 {[%clk 0:01:04]}  Ra2 {[%clk 0:00:26]} 39. Ra6+ {[%clk 0:00:57]}  Ke7 {[%clk 0:00:25]} 40. Bc6 {[%clk 0:00:55]}  Bxc6 {[%clk 0:00:22]} 41. Rxc6 {[%clk 0:00:55]}  Rxa4 {[%clk 0:00:18]} 42. Rxc5 {[%clk 0:00:56]}  Ra2 {[%clk 0:00:17]} 43. Re5+ {[%clk 0:00:52]}  Kf6 {[%clk 0:00:17]} 44. g5+ {[%clk 0:00:49]}  Kf7 {[%clk 0:00:17]} 45. c5 {[%clk 0:00:43]}  Rc2 {[%clk 0:00:17]} 46. Kd1 {[%clk 0:00:40]}  Kf8 {[%clk 0:00:16]} 47. Rd5 {[%clk 0:00:32]}  Kf7 {[%clk 0:00:16]} 48. Rd7+ {[%clk 0:00:28]}  Ke6 {[%clk 0:00:16]} 49. Rd6+ {[%clk 0:00:29]}  Kf7 {[%clk 0:00:15]} 50. c6 {[%clk 0:00:28]}  Kg7 {[%clk 0:00:15]} 51. Rd7+ {[%clk 0:00:28]}  Kf8 {[%clk 0:00:13]} 52. c7 {[%clk 0:00:29]} 1-0


[Site "https://www.chess.com"]

[Event "Titled Tuesday Blitz March 28 Late 2023"]
[White "Holt, Conrad"]
[Black "Andreikin, Dmitry"]
[WhiteFideId "2034387"]
[BlackFideId "4158814"]
[WhiteElo "2592"]
[BlackElo "2736"]
[Result "0-1"]
[Round "10"]
[TimeControl "180+2"]
[Date "2023.03.28"]
[WhiteClock "0:00:01"]
[BlackClock "0:00:09"]

1. d4 {[%clk 0:03:00]}  f5 {[%clk 0:03:00]} 2. g3 {[%clk 0:02:56]}  Nf6 {[%clk 0:02:59]} 3. Bg2 {[%clk 0:02:57]}  g6 {[%clk 0:02:59]} 4. Nh3 {[%clk 0:02:50]}  Bg7 {[%clk 0:03:00]} 5. O-O {[%clk 0:02:50]}  c6 {[%clk 0:02:59]} 6. Nd2 {[%clk 0:02:46]}  d6 {[%clk 0:02:58]} 7. Re1 {[%clk 0:02:38]}  e5 {[%clk 0:02:55]} 8. dxe5 {[%clk 0:02:29]}  dxe5 {[%clk 0:02:55]} 9. Nc4 {[%clk 0:02:30]}  Nd5 {[%clk 0:02:45]} 10. Bg5 {[%clk 0:01:59]}  Qd7 {[%clk 0:02:45]} 11. e4 {[%clk 0:01:58]}  fxe4 {[%clk 0:02:44]} 12. Rxe4 {[%clk 0:01:57]}  O-O {[%clk 0:02:37]} 13. Nxe5 {[%clk 0:01:55]}  Qc7 {[%clk 0:02:32]} 14. c4 {[%clk 0:01:45]}  Bf5 {[%clk 0:02:15]} 15. Re2 {[%clk 0:01:14]}  Nc3 {[%clk 0:01:56]} 16. bxc3 {[%clk 0:01:12]}  Bxe5 {[%clk 0:01:57]} 17. Qe1 {[%clk 0:00:57]}  Nd7 {[%clk 0:01:51]} 18. Rd1 {[%clk 0:00:56]}  Bg4 {[%clk 0:01:07]} 19. Rxd7 {[%clk 0:00:30]}  Qxd7 {[%clk 0:01:08]} 20. Rxe5 {[%clk 0:00:29]}  Bxh3 {[%clk 0:01:09]} 21. Re7 {[%clk 0:00:29]}  Qf5 {[%clk 0:00:51]} 22. Bh6 {[%clk 0:00:24]}  Rfd8 {[%clk 0:00:31]} 23. Bxh3 {[%clk 0:00:12]}  Qxh3 {[%clk 0:00:32]} 24. Rg7+ {[%clk 0:00:09]}  Kh8 {[%clk 0:00:32]} 25. Rxb7 {[%clk 0:00:03]}  Rd7 {[%clk 0:00:15]} 26. Qe5+ {[%clk 0:00:02]}  Kg8 {[%clk 0:00:15]} 27. Rxd7 {[%clk 0:00:02]}  Qxd7 {[%clk 0:00:15]} 28. Be3 {[%clk 0:00:03]}  Re8 {[%clk 0:00:13]} 29. Qc5 {[%clk 0:00:03]}  a6 {[%clk 0:00:13]} 30. Kg2 {[%clk 0:00:02]}  Qe6 {[%clk 0:00:13]} 31. h3 {[%clk 0:00:03]}  Qe4+ {[%clk 0:00:13]} 32. Kh2 {[%clk 0:00:03]}  h5 {[%clk 0:00:13]} 33. Qb4 {[%clk 0:00:02]}  Re7 {[%clk 0:00:12]} 34. Qa4 {[%clk 0:00:03]}  Rd7 {[%clk 0:00:10]} 35. Qxa6 {[%clk 0:00:03]}  Rd1 {[%clk 0:00:09]} 36. Qc8+ {[%clk 0:00:02]}  Kf7 {[%clk 0:00:10]} 37. Qc7+ {[%clk 0:00:02]}  Ke8 {[%clk 0:00:10]} 38. Qc8+ {[%clk 0:00:01]}  Rd8 {[%clk 0:00:09]} 0-1


[Site "https://www.chess.com"]

[Event "Titled Tuesday Blitz March 28 Late 2023"]
[White "Naroditsky, Daniel"]
[Black "Papasimakopoulos, Alexandros"]
[WhiteFideId "2026961"]
[BlackFideId "4244125"]
[WhiteElo "2633"]
[BlackElo "2359"]
[Result "1-0"]
[Round "10"]
[TimeControl "180+2"]
[Date "2023.03.28"]
[WhiteClock "0:01:05"]
[BlackClock "0:00:01"]

1. d4 {[%clk 0:03:00]}  d5 {[%clk 0:02:51]} 2. Nc3 {[%clk 0:03:01]}  e6 {[%clk 0:02:51]} 3. Bf4 {[%clk 0:03:01]}  Bb4 {[%clk 0:02:46]} 4. e3 {[%clk 0:03:01]}  Nf6 {[%clk 0:02:46]} 5. Bd3 {[%clk 0:03:00]}  Nbd7 {[%clk 0:02:40]} 6. Nf3 {[%clk 0:02:59]}  c5 {[%clk 0:02:38]} 7. O-O {[%clk 0:02:57]}  c4 {[%clk 0:02:36]} 8. Be2 {[%clk 0:02:58]}  Bxc3 {[%clk 0:02:34]} 9. bxc3 {[%clk 0:02:59]}  Ne4 {[%clk 0:02:34]} 10. Qe1 {[%clk 0:03:00]}  O-O {[%clk 0:02:33]} 11. a4 {[%clk 0:02:58]}  g5 {[%clk 0:02:18]} 12. Bg3 {[%clk 0:02:54]}  h5 {[%clk 0:02:18]} 13. Nd2 {[%clk 0:02:35]}  Nxd2 {[%clk 0:01:37]} 14. Qxd2 {[%clk 0:02:35]}  h4 {[%clk 0:01:37]} 15. Bd6 {[%clk 0:02:35]}  Re8 {[%clk 0:01:37]} 16. f3 {[%clk 0:02:27]}  Nf8 {[%clk 0:01:31]} 17. Ba3 {[%clk 0:02:22]}  Ng6 {[%clk 0:01:22]} 18. f4 {[%clk 0:02:22]}  gxf4 {[%clk 0:01:17]} 19. exf4 {[%clk 0:02:23]}  Qf6 {[%clk 0:01:05]} 20. Qe3 {[%clk 0:02:20]}  Bd7 {[%clk 0:01:00]} 21. Bg4 {[%clk 0:02:13]}  Bxa4 {[%clk 0:00:58]} 22. Rf2 {[%clk 0:01:49]}  Bd7 {[%clk 0:00:52]} 23. Bd6 {[%clk 0:01:45]}  Qg7 {[%clk 0:00:42]} 24. Qh3 {[%clk 0:01:37]}  f5 {[%clk 0:00:35]} 25. Bh5 {[%clk 0:01:36]}  Qh6 {[%clk 0:00:34]} 26. Bxg6 {[%clk 0:01:33]}  Qxg6 {[%clk 0:00:35]} 27. Qxh4 {[%clk 0:01:31]}  Kf7 {[%clk 0:00:34]} 28. Be5 {[%clk 0:01:24]}  Rg8 {[%clk 0:00:29]} 29. Re1 {[%clk 0:01:17]}  Ke8 {[%clk 0:00:19]} 30. Re3 {[%clk 0:01:11]}  Qg4 {[%clk 0:00:17]} 31. Rg3 {[%clk 0:01:06]}  Qxh4 {[%clk 0:00:16]} 32. Rxg8+ {[%clk 0:01:06]}  Kf7 {[%clk 0:00:17]} 33. Rxa8 {[%clk 0:01:07]}  a6 {[%clk 0:00:12]} 34. h3 {[%clk 0:01:05]}  Qg3 {[%clk 0:00:12]} 35. Rf3 {[%clk 0:01:05]}  Qe1+ {[%clk 0:00:12]} 36. Kh2 {[%clk 0:01:05]}  Be8 {[%clk 0:00:04]} 37. Rg3 {[%clk 0:01:05]}  a5 {[%clk 0:00:02]} 38. Rg7+ {[%clk 0:01:04]}  Kf8 {[%clk 0:00:02]} 39. Rxb7 {[%clk 0:01:04]}  Qxc3 {[%clk 0:00:01]} 40. Bd6+ {[%clk 0:01:04]}  Kg8 {[%clk 0:00:01]} 41. Rxe8# {[%clk 0:01:05]} 1-0


[Site "https://www.chess.com"]

[Event "Titled Tuesday Blitz March 28 Late 2023"]
[White "Anton Guijarro, David"]
[Black "Ozer, Omer Faruk"]
[WhiteFideId "2285525"]
[BlackFideId "6354564"]
[WhiteElo "2618"]
[BlackElo "2260"]
[Result "1-0"]
[Round "10"]
[TimeControl "180+2"]
[Date "2023.03.28"]
[WhiteClock "0:00:09"]
[BlackClock "0:00:04"]

1. e4 {[%clk 0:03:00]}  c5 {[%clk 0:03:00]} 2. Nc3 {[%clk 0:03:01]}  Nc6 {[%clk 0:02:57]} 3. Nf3 {[%clk 0:03:00]}  e6 {[%clk 0:02:56]} 4. Bb5 {[%clk 0:02:59]}  Nge7 {[%clk 0:02:51]} 5. O-O {[%clk 0:02:59]}  a6 {[%clk 0:02:51]} 6. Bxc6 {[%clk 0:02:59]}  Nxc6 {[%clk 0:02:52]} 7. d4 {[%clk 0:03:00]}  cxd4 {[%clk 0:02:52]} 8. Nxd4 {[%clk 0:03:01]}  Qc7 {[%clk 0:02:53]} 9. Re1 {[%clk 0:03:01]}  d6 {[%clk 0:02:48]} 10. Nxc6 {[%clk 0:02:57]}  Qxc6 {[%clk 0:02:47]} 11. Nd5 {[%clk 0:02:41]}  b5 {[%clk 0:02:30]} 12. a4 {[%clk 0:02:42]}  bxa4 {[%clk 0:02:20]} 13. c4 {[%clk 0:02:39]}  Bd7 {[%clk 0:02:16]} 14. Bg5 {[%clk 0:02:11]}  h6 {[%clk 0:01:47]} 15. Bh4 {[%clk 0:02:10]}  Rb8 {[%clk 0:01:22]} 16. b4 {[%clk 0:02:04]}  g5 {[%clk 0:00:50]} 17. Nf6+ {[%clk 0:01:25]}  Ke7 {[%clk 0:00:50]} 18. Nd5+ {[%clk 0:01:25]}  Kd8 {[%clk 0:00:45]} 19. Qf3 {[%clk 0:01:26]}  Bg7 {[%clk 0:00:42]} 20. b5 {[%clk 0:01:00]}  Qc5 {[%clk 0:00:27]} 21. Rxa4 {[%clk 0:00:43]}  gxh4 {[%clk 0:00:18]} 22. Qxf7 {[%clk 0:00:42]}  exd5 {[%clk 0:00:17]} 23. Qxg7 {[%clk 0:00:40]}  Re8 {[%clk 0:00:17]} 24. Rxa6 {[%clk 0:00:31]}  dxc4 {[%clk 0:00:17]} 25. Rd1 {[%clk 0:00:28]}  Rb6 {[%clk 0:00:05]} 26. Ra8+ {[%clk 0:00:15]}  Bc8 {[%clk 0:00:05]} 27. Ra7 {[%clk 0:00:09]}  c3 {[%clk 0:00:04]} 28. Qf6+ {[%clk 0:00:09]} 1-0


[Site "https://www.chess.com"]

[Event "Titled Tuesday Blitz March 28 Late 2023"]
[White "Terry, Renato"]
[Black "Veiga, Jose Francisco R P Neves"]
[WhiteFideId "3803457"]
[BlackFideId "1930087"]
[WhiteElo "2579"]
[BlackElo "2320"]
[Result "1-0"]
[Round "10"]
[TimeControl "180+2"]
[Date "2023.03.28"]
[WhiteClock "0:02:20"]
[BlackClock "0:01:15"]

1. Nf3 {[%clk 0:03:00]}  d6 {[%clk 0:02:59]} 2. d4 {[%clk 0:02:58]}  Nf6 {[%clk 0:02:59]} 3. Bg5 {[%clk 0:02:59]}  Ne4 {[%clk 0:02:59]} 4. Bh4 {[%clk 0:02:58]}  g6 {[%clk 0:02:59]} 5. e3 {[%clk 0:02:59]}  Bg7 {[%clk 0:02:59]} 6. Bd3 {[%clk 0:02:59]}  Nf6 {[%clk 0:02:55]} 7. O-O {[%clk 0:02:58]}  O-O {[%clk 0:02:55]} 8. e4 {[%clk 0:02:58]}  c5 {[%clk 0:02:50]} 9. dxc5 {[%clk 0:02:58]}  dxc5 {[%clk 0:02:49]} 10. c3 {[%clk 0:02:59]}  Nc6 {[%clk 0:02:49]} 11. Qc2 {[%clk 0:02:54]}  Bg4 {[%clk 0:02:33]} 12. Nbd2 {[%clk 0:02:53]}  Nd7 {[%clk 0:02:31]} 13. Rfe1 {[%clk 0:02:50]}  Nde5 {[%clk 0:02:18]} 14. Be2 {[%clk 0:02:51]}  Nxf3+ {[%clk 0:02:03]} 15. Nxf3 {[%clk 0:02:44]}  Bxf3 {[%clk 0:02:03]} 16. Bxf3 {[%clk 0:02:45]}  Ne5 {[%clk 0:02:03]} 17. Be2 {[%clk 0:02:45]}  Qc7 {[%clk 0:02:00]} 18. Rad1 {[%clk 0:02:30]}  Rfd8 {[%clk 0:01:59]} 19. Rd5 {[%clk 0:02:26]}  Rxd5 {[%clk 0:01:54]} 20. exd5 {[%clk 0:02:27]}  Bf6 {[%clk 0:01:49]} 21. Bg3 {[%clk 0:02:21]}  Rd8 {[%clk 0:01:47]} 22. Qe4 {[%clk 0:02:21]}  Bg7 {[%clk 0:01:19]} 23. Bc4 {[%clk 0:02:21]}  f5 {[%clk 0:01:15]} 24. d6+ {[%clk 0:02:20]} 1-0


[Site "https://www.chess.com"]

[Event "Titled Tuesday Blitz March 28 Late 2023"]
[White "Ibarra Jerez, Jose Carlos"]
[Black "Javakhadze, Zurab"]
[WhiteFideId "2226332"]
[BlackFideId "13603647"]
[WhiteElo "2638"]
[BlackElo "2381"]
[Result "0-1"]
[Round "10"]
[TimeControl "180+2"]
[Date "2023.03.28"]
[WhiteClock "0:00:02"]
[BlackClock "0:00:04"]

1. e4 {[%clk 0:03:00]}  e5 {[%clk 0:02:59]} 2. Nf3 {[%clk 0:03:00]}  Nc6 {[%clk 0:03:00]} 3. Nc3 {[%clk 0:03:01]}  Nf6 {[%clk 0:03:00]} 4. h3 {[%clk 0:03:01]}  d6 {[%clk 0:02:51]} 5. d4 {[%clk 0:03:00]}  exd4 {[%clk 0:02:51]} 6. Nxd4 {[%clk 0:03:00]}  Nxd4 {[%clk 0:02:49]} 7. Qxd4 {[%clk 0:03:00]}  Be7 {[%clk 0:02:50]} 8. Bf4 {[%clk 0:02:53]}  O-O {[%clk 0:02:49]} 9. O-O-O {[%clk 0:02:54]}  Be6 {[%clk 0:02:39]} 10. g4 {[%clk 0:02:54]}  Nd7 {[%clk 0:02:36]} 11. Kb1 {[%clk 0:02:49]}  Bf6 {[%clk 0:02:26]} 12. Qd2 {[%clk 0:02:48]}  Re8 {[%clk 0:02:21]} 13. g5 {[%clk 0:02:45]}  Bxc3 {[%clk 0:02:05]} 14. Qxc3 {[%clk 0:02:45]}  Nc5 {[%clk 0:01:56]} 15. f3 {[%clk 0:02:42]}  Rb8 {[%clk 0:01:48]} 16. Bb5 {[%clk 0:02:29]}  Bd7 {[%clk 0:01:41]} 17. Bxd7 {[%clk 0:02:29]}  Nxd7 {[%clk 0:01:41]} 18. h4 {[%clk 0:02:29]}  b5 {[%clk 0:01:36]} 19. h5 {[%clk 0:02:23]}  b4 {[%clk 0:01:29]} 20. Qd4 {[%clk 0:02:23]}  Ne5 {[%clk 0:01:25]} 21. h6 {[%clk 0:02:11]}  g6 {[%clk 0:01:22]} 22. Bg3 {[%clk 0:02:01]}  Qxg5 {[%clk 0:01:11]} 23. Bh2 {[%clk 0:01:34]}  Qxh6 {[%clk 0:00:42]} 24. Qxa7 {[%clk 0:01:29]}  Qg7 {[%clk 0:00:42]} 25. Bxe5 {[%clk 0:01:23]}  Qxe5 {[%clk 0:00:40]} 26. Qxc7 {[%clk 0:01:23]}  Ra8 {[%clk 0:00:25]} 27. Rxh7 {[%clk 0:01:03]}  Qe6 {[%clk 0:00:15]} 28. Rdh1 {[%clk 0:00:54]}  Rec8 {[%clk 0:00:14]} 29. Rh8+ {[%clk 0:00:49]}  Kg7 {[%clk 0:00:14]} 30. R1h7+ {[%clk 0:00:38]}  Kf6 {[%clk 0:00:13]} 31. Rxc8 {[%clk 0:00:33]}  Rxc8 {[%clk 0:00:13]} 32. Rxf7+ {[%clk 0:00:29]}  Kg5 {[%clk 0:00:08]} 33. f4+ {[%clk 0:00:23]}  Kg4 {[%clk 0:00:06]} 34. Qb7 {[%clk 0:00:17]}  Qc4 {[%clk 0:00:05]} 35. Qd7+ {[%clk 0:00:05]}  Kg3 {[%clk 0:00:05]} 36. Qxc8 {[%clk 0:00:02]}  Qf1# {[%clk 0:00:04]} 0-1


[Site "https://www.chess.com"]